[Event "Titled Tuesday Blitz November 08 Early 2022"]
[White "Adnan, Habib"]
[Black "Taboas Rodriguez, Daniel"]
[WhiteFideId "11202270"]
[BlackFideId "2208466"]
[WhiteElo "2110"]
[BlackElo "2329"]
[Result "0-1"]
[Round "01"]
[TimeControl "180+1"]
[Date "2022.11.09"]
[WhiteClock "0:00:06"]
[BlackClock "0:00:32"]

1. d4 {[%clk 0:03:00]}  Nf6 {[%clk 0:02:59]} 2. c4 {[%clk 0:02:58]}  g6 {[%clk 0:02:58]} 3. Nf3 {[%clk 0:02:58]}  Bg7 {[%clk 0:02:58]} 4. Nc3 {[%clk 0:02:58]}  O-O {[%clk 0:02:58]} 5. Bg5 {[%clk 0:02:57]}  b6 {[%clk 0:02:56]} 6. e3 {[%clk 0:02:47]}  Bb7 {[%clk 0:02:56]} 7. Qc2 {[%clk 0:02:46]}  c5 {[%clk 0:02:56]} 8. Be2 {[%clk 0:02:45]}  cxd4 {[%clk 0:02:55]} 9. exd4 {[%clk 0:02:45]}  Nc6 {[%clk 0:02:40]} 10. O-O {[%clk 0:02:32]}  Rc8 {[%clk 0:02:40]} 11. Rac1 {[%clk 0:02:16]}  h6 {[%clk 0:02:37]} 12. Bh4 {[%clk 0:02:15]}  g5 {[%clk 0:02:35]} 13. Bg3 {[%clk 0:02:15]}  d5 {[%clk 0:02:35]} 14. Rfd1 {[%clk 0:01:40]}  e6 {[%clk 0:02:21]} 15. c5 {[%clk 0:01:25]}  bxc5 {[%clk 0:02:12]} 16. dxc5 {[%clk 0:01:25]}  Qa5 {[%clk 0:02:13]} 17. Bd6 {[%clk 0:01:21]}  Rfd8 {[%clk 0:02:13]} 18. a3 {[%clk 0:01:20]}  Ne8 {[%clk 0:01:46]} 19. Nb5 {[%clk 0:01:14]}  Rd7 {[%clk 0:01:29]} 20. b4 {[%clk 0:01:13]}  Qd8 {[%clk 0:01:29]} 21. Bg3 {[%clk 0:01:06]}  e5 {[%clk 0:01:17]} 22. Qf5 {[%clk 0:00:36]}  a6 {[%clk 0:01:08]} 23. Nc3 {[%clk 0:00:27]}  e4 {[%clk 0:01:06]} 24. Nxe4 {[%clk 0:00:24]}  Ne7 {[%clk 0:00:56]} 25. Qh3 {[%clk 0:00:19]}  f5 {[%clk 0:00:45]} 26. Nexg5 {[%clk 0:00:12]}  hxg5 {[%clk 0:00:44]} 27. Nxg5 {[%clk 0:00:12]}  Nf6 {[%clk 0:00:45]} 28. Be5 {[%clk 0:00:06]}  Ng6 {[%clk 0:00:32]} 0-1


[Site "https://www.chess.com"]

[Event "Titled Tuesday Blitz November 08 Early 2022"]
[White "Akbas, Umut Ata"]
[Black "Golubova, Anna"]
[WhiteFideId "44572646"]
[BlackFideId "24173606"]
[WhiteElo "2192"]
[BlackElo "2047"]
[Result "1-0"]
[Round "01"]
[TimeControl "180+1"]
[Date "2022.11.09"]
[WhiteClock "0:01:43"]
[BlackClock "0:00:41"]

1. e4 {[%clk 0:03:00]}  g6 {[%clk 0:02:59]} 2. Nf3 {[%clk 0:03:00]}  Bg7 {[%clk 0:03:00]} 3. Bc4 {[%clk 0:03:00]}  d6 {[%clk 0:03:01]} 4. Nc3 {[%clk 0:03:00]}  Nf6 {[%clk 0:03:00]} 5. h3 {[%clk 0:03:00]}  O-O {[%clk 0:03:01]} 6. Qe2 {[%clk 0:03:00]}  e5 {[%clk 0:02:57]} 7. O-O {[%clk 0:02:58]}  c6 {[%clk 0:02:52]} 8. d4 {[%clk 0:02:56]}  exd4 {[%clk 0:02:41]} 9. Nxd4 {[%clk 0:02:56]}  d5 {[%clk 0:02:33]} 10. exd5 {[%clk 0:02:54]}  Nxd5 {[%clk 0:02:33]} 11. Rd1 {[%clk 0:02:50]}  Nxc3 {[%clk 0:02:24]} 12. bxc3 {[%clk 0:02:51]}  Qc7 {[%clk 0:02:19]} 13. Ba3 {[%clk 0:02:43]}  Rd8 {[%clk 0:02:12]} 14. Qf3 {[%clk 0:02:37]}  a6 {[%clk 0:01:44]} 15. Nb5 {[%clk 0:02:31]}  Rxd1+ {[%clk 0:01:31]} 16. Rxd1 {[%clk 0:02:32]}  axb5 {[%clk 0:01:30]} 17. Qxf7+ {[%clk 0:02:30]}  Qxf7 {[%clk 0:01:29]} 18. Rd8+ {[%clk 0:02:27]}  Bf8 {[%clk 0:01:28]} 19. Rxf8+ {[%clk 0:02:22]}  Kg7 {[%clk 0:01:27]} 20. Rxf7+ {[%clk 0:02:21]}  Kh6 {[%clk 0:01:25]} 21. Bf8+ {[%clk 0:02:21]}  Kg5 {[%clk 0:01:22]} 22. f4+ {[%clk 0:02:10]}  Kh4 {[%clk 0:01:20]} 23. Kh2 {[%clk 0:02:08]}  Bxh3 {[%clk 0:00:54]} 24. gxh3 {[%clk 0:01:59]}  h6 {[%clk 0:00:53]} 25. Be7+ {[%clk 0:01:55]}  g5 {[%clk 0:00:52]} 26. Bxg5+ {[%clk 0:01:56]}  Kh5 {[%clk 0:00:49]} 27. Rf6 {[%clk 0:01:45]}  hxg5 {[%clk 0:00:41]} 28. Be2+ {[%clk 0:01:44]}  g4 {[%clk 0:00:41]} 29. hxg4+ {[%clk 0:01:42]}  Kh4 {[%clk 0:00:41]} 30. Rh6# {[%clk 0:01:43]} 1-0


[Site "https://www.chess.com"]

[Event "Titled Tuesday Blitz November 08 Early 2022"]
[White "Arabidze, Meri"]
[Black "Manon-og, Ramon Jr."]
[WhiteFideId "13604040"]
[BlackFideId "5200776"]
[WhiteElo "2403"]
[BlackElo "2270"]
[Result "1-0"]
[Round "01"]
[TimeControl "180+1"]
[Date "2022.11.09"]
[WhiteClock "0:00:12"]
[BlackClock "0:00:15"]

1. b3 {[%clk 0:02:58]}  e5 {[%clk 0:02:59]} 2. Bb2 {[%clk 0:02:58]}  d6 {[%clk 0:02:59]} 3. e4 {[%clk 0:02:57]}  Nf6 {[%clk 0:02:59]} 4. Nc3 {[%clk 0:02:57]}  Be7 {[%clk 0:02:59]} 5. Nf3 {[%clk 0:02:57]}  Bg4 {[%clk 0:02:57]} 6. Be2 {[%clk 0:02:57]}  O-O {[%clk 0:02:57]} 7. h3 {[%clk 0:02:57]}  Bh5 {[%clk 0:02:56]} 8. d3 {[%clk 0:02:54]}  c5 {[%clk 0:02:55]} 9. Nh4 {[%clk 0:02:28]}  Bxe2 {[%clk 0:02:47]} 10. Qxe2 {[%clk 0:02:29]}  Nxe4 {[%clk 0:02:47]} 11. Qxe4 {[%clk 0:02:29]}  Bxh4 {[%clk 0:02:47]} 12. Qxb7 {[%clk 0:02:30]}  Nd7 {[%clk 0:02:42]} 13. Ne4 {[%clk 0:02:19]}  Nf6 {[%clk 0:02:35]} 14. O-O {[%clk 0:02:12]}  Nh5 {[%clk 0:02:08]} 15. Qd5 {[%clk 0:01:44]}  Be7 {[%clk 0:02:04]} 16. Bc1 {[%clk 0:01:40]}  Kh8 {[%clk 0:02:00]} 17. g4 {[%clk 0:01:36]}  Nf6 {[%clk 0:01:39]} 18. Nxf6 {[%clk 0:01:36]}  Bxf6 {[%clk 0:01:40]} 19. Be3 {[%clk 0:01:37]}  a5 {[%clk 0:01:22]} 20. a4 {[%clk 0:01:36]}  Rb8 {[%clk 0:01:19]} 21. Rae1 {[%clk 0:01:36]}  Rb4 {[%clk 0:01:17]} 22. Re2 {[%clk 0:01:25]}  h5 {[%clk 0:01:16]} 23. f4 {[%clk 0:01:20]}  exf4 {[%clk 0:01:11]} 24. Rxf4 {[%clk 0:01:20]}  Rxf4 {[%clk 0:00:30]} 25. Qxh5+ {[%clk 0:01:15]}  Kg8 {[%clk 0:00:29]} 26. Bxf4 {[%clk 0:01:16]}  Bd4+ {[%clk 0:00:27]} 27. Kh2 {[%clk 0:01:08]}  Re8 {[%clk 0:00:27]} 28. g5 {[%clk 0:00:57]}  Rxe2+ {[%clk 0:00:24]} 29. Qxe2 {[%clk 0:00:58]}  Qd7 {[%clk 0:00:24]} 30. Qg4 {[%clk 0:00:47]}  Qe7 {[%clk 0:00:24]} 31. g6 {[%clk 0:00:31]}  fxg6 {[%clk 0:00:23]} 32. Qxg6 {[%clk 0:00:32]}  Qe2+ {[%clk 0:00:24]} 33. Qg2 {[%clk 0:00:32]}  Qe6 {[%clk 0:00:20]} 34. Bg3 {[%clk 0:00:22]}  d5 {[%clk 0:00:20]} 35. c4 {[%clk 0:00:19]}  dxc4 {[%clk 0:00:19]} 36. bxc4 {[%clk 0:00:20]}  Qe3 {[%clk 0:00:17]} 37. Qd5+ {[%clk 0:00:19]}  Kh8 {[%clk 0:00:17]} 38. Qh5+ {[%clk 0:00:12]}  Kg8 {[%clk 0:00:17]} 39. Qd1 {[%clk 0:00:13]}  Qf3 {[%clk 0:00:15]} 40. Qxf3 {[%clk 0:00:12]} 1-0


[Site "https://www.chess.com"]

[Event "Titled Tuesday Blitz November 08 Early 2022"]
[White "Avramidou, Anastasia"]
[Black "Deac, Bogdan-Daniel"]
[WhiteFideId "4239873"]
[BlackFideId "1226380"]
[WhiteElo "2221"]
[BlackElo "2648"]
[Result "1-0"]
[Round "01"]
[TimeControl "180+1"]
[Date "2022.11.08"]
[WhiteClock "0:00:20"]
[BlackClock "0:00:01"]

1. d4 {[%clk 0:02:59]}  g6 {[%clk 0:02:59]} 2. e4 {[%clk 0:02:59]}  Bg7 {[%clk 0:02:59]} 3. Nc3 {[%clk 0:02:59]}  Nc6 {[%clk 0:02:54]} 4. Be3 {[%clk 0:02:58]}  d6 {[%clk 0:02:52]} 5. f3 {[%clk 0:02:58]}  e5 {[%clk 0:02:40]} 6. d5 {[%clk 0:02:58]}  Nce7 {[%clk 0:02:40]} 7. g4 {[%clk 0:02:51]}  f5 {[%clk 0:02:29]} 8. gxf5 {[%clk 0:02:51]}  gxf5 {[%clk 0:02:28]} 9. Bh3 {[%clk 0:02:36]}  Nf6 {[%clk 0:02:21]} 10. Qd2 {[%clk 0:02:31]}  f4 {[%clk 0:02:04]} 11. Bf2 {[%clk 0:02:31]}  a6 {[%clk 0:01:53]} 12. O-O-O {[%clk 0:02:29]}  b5 {[%clk 0:01:51]} 13. Kb1 {[%clk 0:02:27]}  O-O {[%clk 0:01:49]} 14. Bxc8 {[%clk 0:02:22]}  Qxc8 {[%clk 0:01:48]} 15. h4 {[%clk 0:02:22]}  Nh5 {[%clk 0:01:28]} 16. Nce2 {[%clk 0:02:15]}  h6 {[%clk 0:01:14]} 17. Nh3 {[%clk 0:02:14]}  Kh7 {[%clk 0:01:08]} 18. Rdg1 {[%clk 0:02:13]}  Rg8 {[%clk 0:01:08]} 19. Be1 {[%clk 0:01:48]}  Qd7 {[%clk 0:00:51]} 20. Nf2 {[%clk 0:01:47]}  Bh8 {[%clk 0:00:40]} 21. Ng4 {[%clk 0:01:45]}  Nf6 {[%clk 0:00:38]} 22. Nxf6+ {[%clk 0:01:41]}  Bxf6 {[%clk 0:00:37]} 23. Bf2 {[%clk 0:01:41]}  Rxg1+ {[%clk 0:00:32]} 24. Rxg1 {[%clk 0:01:26]}  Qh3 {[%clk 0:00:32]} 25. Qc3 {[%clk 0:01:26]}  Rg8 {[%clk 0:00:18]} 26. Rxg8 {[%clk 0:00:47]}  Kxg8 {[%clk 0:00:16]} 27. Nc1 {[%clk 0:00:46]}  Kf7 {[%clk 0:00:09]} 28. a3 {[%clk 0:00:42]}  Ke8 {[%clk 0:00:04]} 29. Qxc7 {[%clk 0:00:38]}  Qxf3 {[%clk 0:00:04]} 30. Bb6 {[%clk 0:00:33]}  Qxe4 {[%clk 0:00:03]} 31. Qxd6 {[%clk 0:00:33]}  Nxd5 {[%clk 0:00:02]} 32. Qe6+ {[%clk 0:00:23]}  Kf8 {[%clk 0:00:03]} 33. Bc5+ {[%clk 0:00:23]}  Kg7 {[%clk 0:00:03]} 34. h5 {[%clk 0:00:22]}  f3 {[%clk 0:00:02]} 35. Nd3 {[%clk 0:00:21]}  Nf4 {[%clk 0:00:02]} 36. Qd7+ {[%clk 0:00:20]}  Kh8 {[%clk 0:00:02]} 37. Qe8+ {[%clk 0:00:20]}  Kh7 {[%clk 0:00:02]} 38. Qf7+ {[%clk 0:00:19]}  Bg7 {[%clk 0:00:01]} 39. Bf8 {[%clk 0:00:20]} 1-0


[Site "https://www.chess.com"]

[Event "Titled Tuesday Blitz November 08 Early 2022"]
[White "Baches Garcia, Guillermo"]
[Black "Artemenko, Oleg"]
[WhiteFideId "2209764"]
[BlackFideId "14201798"]
[WhiteElo "2439"]
[BlackElo "2287"]
[Result "1/2-1/2"]
[Round "01"]
[TimeControl "180+1"]
[Date "2022.11.09"]
[WhiteClock "0:00:49"]
[BlackClock "0:01:52"]

1. e4 {[%clk 0:03:00]}  e6 {[%clk 0:02:59]} 2. d4 {[%clk 0:03:00]}  d5 {[%clk 0:02:59]} 3. exd5 {[%clk 0:03:01]}  exd5 {[%clk 0:02:59]} 4. Nf3 {[%clk 0:03:01]}  Nc6 {[%clk 0:03:00]} 5. Bb5 {[%clk 0:03:00]}  Bd6 {[%clk 0:02:59]} 6. c4 {[%clk 0:03:00]}  dxc4 {[%clk 0:02:58]} 7. d5 {[%clk 0:03:01]}  a6 {[%clk 0:02:57]} 8. Ba4 {[%clk 0:03:02]}  b5 {[%clk 0:02:57]} 9. dxc6 {[%clk 0:03:02]}  bxa4 {[%clk 0:02:57]} 10. O-O {[%clk 0:03:03]}  Ne7 {[%clk 0:02:58]} 11. Qxa4 {[%clk 0:03:03]}  O-O {[%clk 0:02:58]} 12. Nbd2 {[%clk 0:03:03]}  Be6 {[%clk 0:02:58]} 13. Nxc4 {[%clk 0:02:54]}  Qe8 {[%clk 0:02:42]} 14. Nxd6 {[%clk 0:02:41]}  cxd6 {[%clk 0:02:42]} 15. Bf4 {[%clk 0:02:32]}  Qxc6 {[%clk 0:02:42]} 16. Qxc6 {[%clk 0:02:27]}  Nxc6 {[%clk 0:02:40]} 17. Bxd6 {[%clk 0:02:22]}  Rfd8 {[%clk 0:02:40]} 18. Rfd1 {[%clk 0:02:20]}  Rac8 {[%clk 0:02:39]} 19. a3 {[%clk 0:02:03]}  f6 {[%clk 0:02:31]} 20. Bf4 {[%clk 0:01:56]}  Bb3 {[%clk 0:02:29]} 21. Rxd8+ {[%clk 0:01:50]}  Rxd8 {[%clk 0:02:30]} 22. Rc1 {[%clk 0:01:45]}  Na5 {[%clk 0:02:23]} 23. Bc7 {[%clk 0:01:23]}  Rc8 {[%clk 0:02:18]} 24. Rc3 {[%clk 0:01:17]}  Nb7 {[%clk 0:02:07]} 25. Nd4 {[%clk 0:01:01]}  Bd5 {[%clk 0:02:03]} 26. Nf5 {[%clk 0:00:57]}  Re8 {[%clk 0:02:00]} 27. Re3 {[%clk 0:00:50]}  Rxe3 {[%clk 0:01:58]} 28. Nxe3 {[%clk 0:00:48]}  Bc6 {[%clk 0:01:54]} 29. Nf5 {[%clk 0:00:46]}  Kf7 {[%clk 0:01:54]} 30. Nd6+ {[%clk 0:00:46]}  Nxd6 {[%clk 0:01:54]} 31. Bxd6 {[%clk 0:00:46]}  Ke6 {[%clk 0:01:54]} 32. Bb4 {[%clk 0:00:46]}  Kd5 {[%clk 0:01:54]} 33. Bc3 {[%clk 0:00:47]}  Kc4 {[%clk 0:01:54]} 34. f3 {[%clk 0:00:47]}  Kd3 {[%clk 0:01:54]} 35. Kf2 {[%clk 0:00:47]}  h5 {[%clk 0:01:54]} 36. g3 {[%clk 0:00:47]}  Bd5 {[%clk 0:01:53]} 37. h4 {[%clk 0:00:48]}  Bc6 {[%clk 0:01:53]} 38. f4 {[%clk 0:00:48]}  Bd7 {[%clk 0:01:52]} 39. Ba5 {[%clk 0:00:47]}  g6 {[%clk 0:01:50]} 40. Bc3 {[%clk 0:00:47]}  f5 {[%clk 0:01:50]} 41. Be5 {[%clk 0:00:48]}  a5 {[%clk 0:01:50]} 42. Bc3 {[%clk 0:00:48]}  a4 {[%clk 0:01:50]} 43. Be5 {[%clk 0:00:48]}  Bc6 {[%clk 0:01:50]} 44. Bc3 {[%clk 0:00:48]}  Bh1 {[%clk 0:01:50]} 45. Be5 {[%clk 0:00:49]}  Be4 {[%clk 0:01:50]} 46. Bc3 {[%clk 0:00:49]}  Bd5 {[%clk 0:01:48]} 47. Be5 {[%clk 0:00:49]}  Kd2 {[%clk 0:01:49]} 48. Bc3+ {[%clk 0:00:49]}  Kc2 {[%clk 0:01:49]} 49. Be5 {[%clk 0:00:49]}  Kd3 {[%clk 0:01:50]} 50. Bc3 {[%clk 0:00:49]}  Bb3 {[%clk 0:01:49]} 51. Be5 {[%clk 0:00:49]}  Bc2 {[%clk 0:01:49]} 52. Bc3 {[%clk 0:00:49]}  Bb3 {[%clk 0:01:50]} 53. Be5 {[%clk 0:00:49]}  Kd2 {[%clk 0:01:51]} 54. Bc3+ {[%clk 0:00:49]}  Kd3 {[%clk 0:01:52]} 1/2-1/2


[Site "https://www.chess.com"]

[Event "Titled Tuesday Blitz November 08 Early 2022"]
[White "Baskakov, Egor"]
[Black "Zacurdajev, Dmitry"]
[WhiteFideId "24197866"]
[BlackFideId "4196309"]
[WhiteElo "2211"]
[BlackElo "2179"]
[Result "1-0"]
[Round "01"]
[TimeControl "180+1"]
[Date "2022.11.09"]
[WhiteClock "0:01:22"]
[BlackClock "0:00:02"]

1. e4 {[%clk 0:03:00]}  c6 {[%clk 0:02:59]} 2. d4 {[%clk 0:03:00]}  d5 {[%clk 0:03:00]} 3. e5 {[%clk 0:03:00]}  c5 {[%clk 0:03:00]} 4. c4 {[%clk 0:03:00]}  cxd4 {[%clk 0:02:58]} 5. Nf3 {[%clk 0:03:00]}  Nc6 {[%clk 0:02:57]} 6. Nxd4 {[%clk 0:03:01]}  Nxe5 {[%clk 0:02:44]} 7. cxd5 {[%clk 0:02:59]}  Qxd5 {[%clk 0:02:39]} 8. Nc3 {[%clk 0:02:59]}  Qa5 {[%clk 0:02:36]} 9. Bb5+ {[%clk 0:02:59]}  Bd7 {[%clk 0:02:33]} 10. Qe2 {[%clk 0:03:00]}  Nc6 {[%clk 0:02:27]} 11. O-O {[%clk 0:02:57]}  Nxd4 {[%clk 0:02:19]} 12. Bxd7+ {[%clk 0:02:57]}  Kxd7 {[%clk 0:02:19]} 13. Rd1 {[%clk 0:02:47]}  e5 {[%clk 0:02:10]} 14. Be3 {[%clk 0:02:46]}  Qa6 {[%clk 0:01:14]} 15. Nb5 {[%clk 0:02:37]}  Bc5 {[%clk 0:01:05]} 16. Bxd4 {[%clk 0:01:58]}  exd4 {[%clk 0:01:05]} 17. b4 {[%clk 0:01:56]}  Re8 {[%clk 0:00:29]} 18. Qg4+ {[%clk 0:01:35]}  Re6 {[%clk 0:00:14]} 19. bxc5 {[%clk 0:01:24]}  Qxb5 {[%clk 0:00:14]} 20. Qxg7 {[%clk 0:01:24]}  Rg6 {[%clk 0:00:11]} 21. Qxd4+ {[%clk 0:01:23]}  Ke7 {[%clk 0:00:03]} 22. Qxh8 {[%clk 0:01:22]}  Qc6 {[%clk 0:00:02]} 23. g3 {[%clk 0:01:22]}  Nf6 {[%clk 0:00:02]} 24. Qd8+ {[%clk 0:01:21]}  Ke6 {[%clk 0:00:02]} 25. Rd6+ {[%clk 0:01:22]} 1-0


[Site "https://www.chess.com"]

[Event "Titled Tuesday Blitz November 08 Early 2022"]
[White "Belozerov, Andrei"]
[Black "Topalov, Aleksandar"]
[WhiteFideId "4120213"]
[BlackFideId "925659"]
[WhiteElo "2360"]
[BlackElo "2179"]
[Result "1-0"]
[Round "01"]
[TimeControl "180+1"]
[Date "2022.11.09"]
[WhiteClock "0:00:52"]
[BlackClock "0:00:38"]

1. d4 {[%clk 0:03:00]}  Nf6 {[%clk 0:02:49]} 2. Nf3 {[%clk 0:03:01]}  g6 {[%clk 0:02:47]} 3. c4 {[%clk 0:03:01]}  Bg7 {[%clk 0:02:46]} 4. g3 {[%clk 0:03:01]}  O-O {[%clk 0:02:45]} 5. Bg2 {[%clk 0:03:01]}  c5 {[%clk 0:02:45]} 6. O-O {[%clk 0:02:58]}  cxd4 {[%clk 0:02:43]} 7. Nxd4 {[%clk 0:02:59]}  Nc6 {[%clk 0:02:43]} 8. Nc3 {[%clk 0:02:58]}  Nxd4 {[%clk 0:02:43]} 9. Qxd4 {[%clk 0:02:57]}  d6 {[%clk 0:02:43]} 10. Qd3 {[%clk 0:02:57]}  Bf5 {[%clk 0:02:37]} 11. e4 {[%clk 0:02:55]}  Bd7 {[%clk 0:02:37]} 12. b3 {[%clk 0:02:51]}  Bc6 {[%clk 0:02:37]} 13. Bd2 {[%clk 0:02:39]}  a6 {[%clk 0:02:32]} 14. a4 {[%clk 0:02:27]}  a5 {[%clk 0:02:17]} 15. Rad1 {[%clk 0:02:17]}  Nd7 {[%clk 0:02:17]} 16. Qc2 {[%clk 0:02:16]}  Nc5 {[%clk 0:02:16]} 17. Kh1 {[%clk 0:02:02]}  Qb6 {[%clk 0:02:15]} 18. Nb5 {[%clk 0:01:59]}  Bxb5 {[%clk 0:02:12]} 19. axb5 {[%clk 0:01:59]}  Qc7 {[%clk 0:02:09]} 20. f4 {[%clk 0:01:57]}  a4 {[%clk 0:01:47]} 21. b4 {[%clk 0:01:56]}  Nb3 {[%clk 0:01:47]} 22. Be3 {[%clk 0:01:54]}  Rac8 {[%clk 0:01:41]} 23. e5 {[%clk 0:01:29]}  Qxc4 {[%clk 0:01:31]} 24. Qxc4 {[%clk 0:01:28]}  Rxc4 {[%clk 0:01:31]} 25. Bxb7 {[%clk 0:01:26]}  Rxb4 {[%clk 0:01:31]} 26. b6 {[%clk 0:01:25]}  Nc5 {[%clk 0:01:28]} 27. exd6 {[%clk 0:01:17]}  Nxb7 {[%clk 0:01:09]} 28. dxe7 {[%clk 0:01:17]}  Re8 {[%clk 0:01:09]} 29. Rd7 {[%clk 0:01:16]}  Bf6 {[%clk 0:00:55]} 30. Rxb7 {[%clk 0:01:12]}  Rxe7 {[%clk 0:00:54]} 31. Rb8+ {[%clk 0:01:09]}  Kg7 {[%clk 0:00:52]} 32. Bc5 {[%clk 0:01:08]}  Rb5 {[%clk 0:00:42]} 33. Bxe7 {[%clk 0:01:06]}  Bxe7 {[%clk 0:00:42]} 34. b7 {[%clk 0:00:55]}  Bd6 {[%clk 0:00:42]} 35. Rd8 {[%clk 0:00:55]}  Be7 {[%clk 0:00:38]} 36. b8=Q {[%clk 0:00:52]} 1-0


[Site "https://www.chess.com"]

[Event "Titled Tuesday Blitz November 08 Early 2022"]
[White "Berdychevskaya, Natasha"]
[Black "Skliarov, Viktor"]
[WhiteFideId "4159322"]
[BlackFideId "14106736"]
[WhiteElo "2108"]
[BlackElo "2284"]
[Result "1/2-1/2"]
[Round "01"]
[TimeControl "180+1"]
[Date "2022.11.09"]
[WhiteClock "0:00:28"]
[BlackClock "0:00:10"]

1. d4 {[%clk 0:02:59]}  Nf6 {[%clk 0:02:54]} 2. c4 {[%clk 0:02:59]}  e6 {[%clk 0:02:54]} 3. Nc3 {[%clk 0:02:58]}  Bb4 {[%clk 0:02:53]} 4. Qc2 {[%clk 0:02:58]}  c5 {[%clk 0:02:53]} 5. dxc5 {[%clk 0:02:57]}  Na6 {[%clk 0:02:53]} 6. a3 {[%clk 0:02:54]}  Bxc3+ {[%clk 0:02:53]} 7. Qxc3 {[%clk 0:02:54]}  Nxc5 {[%clk 0:02:53]} 8. f3 {[%clk 0:02:53]}  d5 {[%clk 0:02:53]} 9. cxd5 {[%clk 0:02:32]}  b6 {[%clk 0:02:49]} 10. b4 {[%clk 0:02:29]}  Na4 {[%clk 0:02:48]} 11. Qb3 {[%clk 0:02:20]}  Bd7 {[%clk 0:02:47]} 12. dxe6 {[%clk 0:02:14]}  fxe6 {[%clk 0:02:47]} 13. e4 {[%clk 0:02:09]}  O-O {[%clk 0:02:44]} 14. Ba6 {[%clk 0:01:44]}  Nxe4 {[%clk 0:02:01]} 15. fxe4 {[%clk 0:01:39]}  Qh4+ {[%clk 0:02:00]} 16. Qg3 {[%clk 0:01:32]}  Qxe4+ {[%clk 0:02:00]} 17. Ne2 {[%clk 0:01:28]}  b5 {[%clk 0:01:33]} 18. Bh6 {[%clk 0:01:20]}  Rf7 {[%clk 0:01:31]} 19. Rf1 {[%clk 0:01:16]}  Raf8 {[%clk 0:01:24]} 20. Rxf7 {[%clk 0:01:08]}  Rxf7 {[%clk 0:01:23]} 21. Rd1 {[%clk 0:01:06]}  Nb2 {[%clk 0:00:43]} 22. Rd4 {[%clk 0:00:55]}  Qb1+ {[%clk 0:00:39]} 23. Nc1 {[%clk 0:00:40]}  Nc4 {[%clk 0:00:34]} 24. Qb8+ {[%clk 0:00:34]}  Rf8 {[%clk 0:00:34]} 25. Qg3 {[%clk 0:00:29]}  Rf7 {[%clk 0:00:09]} 26. Qb8+ {[%clk 0:00:29]}  Rf8 {[%clk 0:00:09]} 27. Qg3 {[%clk 0:00:28]}  Rf7 {[%clk 0:00:10]} 1/2-1/2


[Site "https://www.chess.com"]

[Event "Titled Tuesday Blitz November 08 Early 2022"]
[White "Bluebaum, Matthias"]
[Black "Ronka, Erik"]
[WhiteFideId "24651516"]
[BlackFideId "505080"]
[WhiteElo "2633"]
[BlackElo "2264"]
[Result "1-0"]
[Round "01"]
[TimeControl "180+1"]
[Date "2022.11.09"]
[WhiteClock "0:00:59"]
[BlackClock "0:00:03"]

1. d4 {[%clk 0:03:00]}  d5 {[%clk 0:02:59]} 2. c4 {[%clk 0:03:00]}  e6 {[%clk 0:02:59]} 3. Nc3 {[%clk 0:03:00]}  Nf6 {[%clk 0:02:59]} 4. cxd5 {[%clk 0:02:59]}  Nxd5 {[%clk 0:03:00]} 5. e4 {[%clk 0:02:59]}  Nxc3 {[%clk 0:03:00]} 6. bxc3 {[%clk 0:03:00]}  c5 {[%clk 0:03:01]} 7. Rb1 {[%clk 0:03:01]}  Be7 {[%clk 0:02:58]} 8. Bc4 {[%clk 0:02:59]}  O-O {[%clk 0:02:56]} 9. Ne2 {[%clk 0:03:00]}  b6 {[%clk 0:02:54]} 10. O-O {[%clk 0:03:00]}  Bb7 {[%clk 0:02:51]} 11. Ng3 {[%clk 0:03:00]}  Nc6 {[%clk 0:02:44]} 12. Be3 {[%clk 0:03:00]}  Rc8 {[%clk 0:02:41]} 13. Bb5 {[%clk 0:03:00]}  Na5 {[%clk 0:02:35]} 14. Qg4 {[%clk 0:02:43]}  Kh8 {[%clk 0:02:20]} 15. Rbd1 {[%clk 0:02:38]}  c4 {[%clk 0:01:40]} 16. Ba4 {[%clk 0:02:35]}  a6 {[%clk 0:01:16]} 17. Bc2 {[%clk 0:02:35]}  b5 {[%clk 0:01:16]} 18. d5 {[%clk 0:02:30]}  exd5 {[%clk 0:01:01]} 19. exd5 {[%clk 0:02:25]}  Bf6 {[%clk 0:01:01]} 20. Bd4 {[%clk 0:01:56]}  Bxd4 {[%clk 0:00:55]} 21. Rxd4 {[%clk 0:01:52]}  g6 {[%clk 0:00:36]} 22. Qh3 {[%clk 0:01:40]}  f5 {[%clk 0:00:30]} 23. d6 {[%clk 0:01:30]}  Qd7 {[%clk 0:00:26]} 24. Ne4 {[%clk 0:01:15]}  Bxe4 {[%clk 0:00:20]} 25. Bxe4 {[%clk 0:01:15]}  Nc6 {[%clk 0:00:21]} 26. Bxc6 {[%clk 0:01:15]}  Rxc6 {[%clk 0:00:22]} 27. Rfd1 {[%clk 0:01:15]}  Rd8 {[%clk 0:00:22]} 28. Qg3 {[%clk 0:01:10]}  a5 {[%clk 0:00:22]} 29. Qe5+ {[%clk 0:01:09]}  Kg8 {[%clk 0:00:22]} 30. Qxb5 {[%clk 0:01:08]}  Qe8 {[%clk 0:00:07]} 31. h4 {[%clk 0:01:06]}  Kg7 {[%clk 0:00:04]} 32. Qxa5 {[%clk 0:01:03]}  Qd7 {[%clk 0:00:02]} 33. Qe5+ {[%clk 0:01:02]}  Kf7 {[%clk 0:00:02]} 34. Qd5+ {[%clk 0:01:02]}  Kg7 {[%clk 0:00:03]} 35. a4 {[%clk 0:00:59]}  Rdc8 {[%clk 0:00:03]} 36. Re1 {[%clk 0:00:58]}  Re8 {[%clk 0:00:02]} 37. Rxe8 {[%clk 0:00:58]}  Qxe8 {[%clk 0:00:03]} 38. d7 {[%clk 0:00:59]}  Qe1+ {[%clk 0:00:03]} 39. Kh2 {[%clk 0:00:59]} 1-0


[Site "https://www.chess.com"]